Workbook

Sheet Лист1
A1: район | B1: Учреждение | C1: Количество детей по муниципальному заданию | J1: Общее количество сотрудников | K1: Кол-во сотрудников, имеющие высшую и первую кв.кактегории | M1: балл | O1: Количество педагогов, ставших победителями и призерами в профессиональных конкурсах | AC1: Выступление педагогов на семинарах, конференциях + публикации в газетах, журналах, СМИ | AQ1: Методические семинары, конференции, проводимые на базе учреждения | BE1: Участие ОО в конкурсах ОО | BM1: Грантовая активность (указывать количество конкурсов) | BQ1: Доступность и открытость | BV1: Безопасные условия (минус 1 балл за каждый случай) | BZ1: Обеспечение образовательного процесса | CG1: Результаты обучающихся | CU1: Городские мероприятия | DO1: Эффективность управления
C2: младший возраст (6/7-10 лет, 1-4 класс) | D2: доля | E2: средний возраст (11-15 лет, 5-9 класс) | F2: доля | G2: старший возраст (16-18 лет, 10-11 класс) | H2: доля | I2: общее количество детей | L2: доля | N2: место | O2: городской | P2: доля | Q2: балл | R2: Республиканский | S2: доля | T2: балл | U2: Всероссийский | V2: доля | W2: балл | X2: Международный | Y2: доля | Z2: балл | AA2: балл | AB2: место | AC2: городской | AD2: доля | AE2: балл | AF2: Республиканский | AG2: доля | AH2: балл | AI2: Всероссийский | AJ2: доля | AK2: балл | AL2: Международный | AM2: доля | AN2: балл | AO2: балл | AP2: место | AQ2: городской | AR2: доля | AS2: балл | AT2: Республиканский | AU2: доля | AV2: балл | AW2: Всероссийский | AX2: доля | AY2: балл | AZ2: Международный | BA2: доля | BB2: балл | BC2: балл | BD2: место | BE2: Городской, республиканский | BF2: балл | BG2: Всероссийский | BH2: балл | BI2: Международный | BJ2: балл | BK2: балл | BL2: место | BM2: Учреждения | BN2: Педагогов | BO2: балл | BP2: место | BQ2: Наличие публичного отчета | BR2: Наличие финансового отчета | BS2: Наличие оперативной информации | BT2: балл | BU2: место | BV2: Налииче детского травматизма | BW2: Наличие взрослого травматизма | BX2: балл | BY2: место | BZ2: Кол-во детей-инвалидов, ОВЗ | CA2: доля | CB2: балл | CC2: Количество реализуемых адаптированных программ для детей с ОВЗ, детей-инвалидов | CD2: балл | CE2: балл | CF2: место | CG2: городской | CH2: доля | CI2: балл | CJ2: Республиканский | CK2: доля | CL2: балл | CM2: Всероссийский | CN2: доля | CO2: балл | CP2: Международный | CQ2: доля | CR2: балл | CS2: балл | CT2: место | CU2: НВП | CV2: 9 Мая | CW2: День защиты детей | CX2: Сабантуй | CY2: Большая перемена | CZ2: Открытие и закрытие олимпиад | DA2: Новый год | DB2: день города и РТ | DC2: Иные городские мероприятия | DD2: балл | DE2: Организация и проведение мероприятий самим учреждением (р., г., респ., вс.) | DF2: район балл | DG2: город балл | DH2: респ балл | DI2: всерос балл | DJ2: балл | DK2: место | DL2: Объем средств, привлеченных за счет оказания платных услуг | DM2: балл | DN2: место | DO2: Наличие жалоб | DP2: Наличие дисциплинарных взысканий | DQ2: балл | DR2: место | DS2: итоговые баллы | DU2: итоговое место
B4: МБУДО ДДЮТиЭ "Простор" | C4: 511 | D4: =C4*100/I4 -> 41.89 | E4: 614 | F4: =E4*100/I4 -> 50.33 | G4: 95 | H4: =G4*100/I4 -> 7.79 | I4: =SUM(C4,E4,G4) -> 1220 | J4: 51 | K4: 24 | L4: =K4*100/J4 -> 47 | M4: 3 | N4: 1 | O4: 15 | P4: =O4*100/J4 -> 29.41 | Q4: =P4*2 -> 58.82 | R4: 20 | S4: =R4*100/J4 -> 39.22 | T4: =S4*2 -> 78.43 | U4: 56 | V4: =U4*100/J4 -> 109.80 | W4: =V4*3 -> 329.41 | X4: 3 | Y4: =X4*100/J4 -> 5.88 | Z4: =Y4*3 -> 17.65 | AA4: =Q4+T4+W4+Z4 -> 484 | AB4: 2 | AC4: 41 | AD4: =AC4*100/J4 -> 80.39 | AE4: =AD4*2 -> 160.78 | AF4: 35 | AG4: =AF4*100/J4 -> 68.63 | AH4: =AG4*2 -> 137.25 | AI4: 16 | AJ4: =AI4*100/J4 -> 31.37 | AK4: =AJ4*3 -> 94.12 | AL4: 16 | AM4: =AL4*100/J4 -> 31.37 | AN4: =AM4*3 -> 94.12 | AO4: =AE4+AH4+AK4+AN4 -> 486 | AP4: 1 | AQ4: 0 | AR4: =AQ4*100/J4 -> 0.00 | AS4: =AR4*2 -> 0.00 | AT4: 3 | AU4: =AT4*100/J4 -> 5.88 | AV4: =AU4*2 -> 11.76 | AW4: 1 | AX4: =AW4*100/J4 -> 1.96 | AY4: =AX4*3 -> 5.88 | AZ4: 0 | BA4: =AZ4*100/J4 -> 0.00 | BB4: =BA4*3 -> 0.00 | BC4: =AS4+AV4+AY4+BB4 -> 18 | BD4: 3 | BE4: 1 | BF4: =BE4*2 -> 2 | BG4: 0 | BH4: =BG4*3 -> 0 | BI4: 0 | BJ4: =BI4*4 -> 0 | BK4: =BF4+BH4+BJ4 -> 2 | BL4: 1 | BM4: 1 | BN4: 1 | BO4: =(BM4+BN4)*2 -> 4 | BP4: 3 | BQ4: 1 | BR4: 1 | BS4: 1 | BT4: =BQ4+BR4+BS4 -> 3 | BU4: 1 | BV4: 5 | BW4: 5 | BX4: =BW4+BV4 -> 10 | BY4: 1 | BZ4: 0 | CA4: =BZ4*100/I4 -> 0 | CB4: 0 | CC4: 0 | CD4: 0 | CE4: =CB4+CD4 -> 0 | CF4: 5 | CG4: 139 | CH4: =CG4*100/I4 -> 11.39344262 | CI4: =CH4*2 -> 22.79 | CJ4: 476 | CK4: =CJ4*100/I4 -> 39.02 | CL4: =CK4*2 -> 78.03 | CM4: 163 | CN4: =CM4*100/I4 -> 13.36 | CO4: =CN4*3 -> 40.08 | CP4: 22 | CQ4: =CP4*100/I4 -> 1.80 | CR4: =CQ4*3 -> 5.41 | CS4: =CI4+CL4+CO4+CR4 -> 146.31 | CT4: 3 | CU4: 5 | CV4: 5 | CW4: 0 | CX4: 5 | CY4: 0 | CZ4: 0 | DA4: 5 | DB4: 5 | DC4: 2 | DD4: =SUM(CU4:DC4) -> 27 | DE4: р.-9, г.-1, респ.-6, вс.-1 | DF4: 40 | DG4: 16 | DH4: 27 | DI4: 28 | DJ4: =CU4+CV4+CW4+CX4+CY4+CZ4+DA4+DB4+DD4 -> 52 | DK4: 12 | DL4: 135125 | DM4: 4 | DN4: 1 | DO4: 5 | DP4: 5 | DQ4: =DP4+DO4 -> 10 | DR4: 1 | DS4: =M4+AA4+AO4+BC4+BK4+BO4+BT4+BX4+CS4+DJ4+DM4+DQ4 -> 1223 | DT4: 1 | DU4: =N4+AB4+AP4+BD4+BL4+BU4+BY4+CF4+CT4+DK4+DN4+DR4 -> 32
C7: ПРИМЕЧАНИЕ! ЗАПОЛНЯТЬ ТОЛЬКО ЗЕЛЕНЫЕ ЯЧЕЙКИ! ОСТАЛЬНЫЕ НЕ ТРОГАТЬ.
